bitfinex/quotes_BTCUSD_20241120
["timestamp","ask_amount","ask_price","bid_price","bid_amount"]
[1732120077167,0.002,93626.0,93601.0,0.01190398]
[1732120077387,0.03125691,93625.0,93602.0,0.10818335]
[1732120077614,0.0037142,93631.0,93603.0,0.12190399]
[1732120077615,0.03125691,93624.0,93603.0,0.12190399]
[1732120077851,0.0017142,93631.0,93605.0,0.1]
[1732120078063,0.0017142,93631.0,93607.0,0.1]
[1732120078305,0.0017142,93631.0,93606.0,0.13410874]
[1732120078306,0.00115534,93631.0,93609.0,0.1]
[1732120078517,0.00115534,93631.0,93611.0,0.1]
[1732120078738,3.4e-07,93631.0,93612.0,0.10711512]
[1732120078946,3.4e-07,93631.0,93613.0,0.1]
[1732120079192,3.4e-07,93631.0,93615.0,0.1]
[1732120079417,3.4e-07,93631.0,93617.0,0.1]
[1732120079641,3.4e-07,93631.0,93608.0,0.0131]
[1732120079642,3.4e-07,93631.0,93619.0,0.1]
[1732120079864,3.4e-07,93631.0,93619.0,0.20711512]
[1732120080081,3.4e-07,93631.0,93620.0,0.02071151]
[1732120081205,0.23330522,93644.0,93620.0,0.02071151]
[1732120081206,0.09019317,93639.0,93622.0,0.1]
[1732120081417,0.09019317,93639.0,93608.0,0.0131]
[1732120081418,0.009,93633.0,93608.0,0.0131]
[1732120081658,0.009,93628.0,93598.0,0.0008565]
[1732120081888,0.34560084,93627.0,93603.0,0.04319754]
[1732120082113,0.34555137,93626.0,93604.0,0.01511692]
[1732120082325,0.19564418,93628.0,93599.0,0.10711512]
[1732120082326,0.18664418,93621.0,93605.0,0.01230885]
[1732120082671,0.53219555,93620.0,93605.0,0.01230885]
[1732120082920,0.53219555,93620.0,93598.0,0.0008565]
[1732120082921,0.002,93614.0,93606.0,0.0119424]
[1732120083161,0.34555137,93619.0,93598.0,0.0008565]
[1732120083162,0.18664418,93608.0,93598.0,0.0008565]
[1732120083378,0.18664418,93604.0,93598.0,0.0008565]
[1732120083590,0.10711512,93618.0,93598.0,0.0008565]
[1732120083591,0.34555137,93603.0,93598.0,0.0008565]
[1732120083804,0.23330522,93608.0,93598.0,0.0008565]
[1732120083805,0.18664418,93608.0,93598.0,0.0008565]
[1732120084024,0.34589032,93607.0,93598.0,0.0008565]
[1732120084260,0.18664418,93611.0,93598.0,0.0008565]
[1732120084468,0.34584622,93610.0,93598.0,0.0008565]
[1732120084701,0.18664418,93611.0,93598.0,0.0008565]
[1732120084911,0.11611512,93619.0,93598.0,0.0008565]
[1732120084912,0.53245743,93610.0,93598.0,0.0008565]
[1732120085117,0.14164418,93608.0,93598.0,0.0008565]
[1732120085329,0.23530522,93611.0,93598.0,0.0008565]
[1732120085330,0.01951261,93607.0,93598.0,0.0008565]
[1732120085541,0.01951261,93606.0,93598.0,0.0008565]
[1732120085751,0.01951261,93605.0,93598.0,0.0008565]
[1732120085994,0.23330522,93615.0,93598.0,0.0008565]
[1732120086207,0.34565236,93614.0,93598.0,0.0008565]
[1732120086436,0.009,93618.0,93598.0,0.0008565]
[1732120086437,0.36515896,93613.0,93598.0,0.0008565]
[1732120086651,0.36515896,93613.0,93529.0,0.09578102]
[1732120086652,0.0811,93609.0,93555.0,0.38543573]
[1732120086875,0.0811,93570.0,93546.0,0.1339]
[1732120087133,0.0811,93570.0,93523.0,0.000304]
[1732120087134,0.022,93526.0,93523.0,0.000304]
[1732120087344,0.022,93524.0,93523.0,0.00023401]
[1732120087568,0.01,93519.0,93518.0,0.00040648]
[1732120087787,0.58689822,93519.0,93518.0,0.00040648]
[1732120088032,0.01,93508.0,93484.0,0.19]
[1732120088244,0.01,93508.0,93484.0,0.18284416]
[1732120088245,0.01,93491.0,93484.0,0.18284416]
[1732120088471,0.11711512,93485.0,93484.0,0.18284416]
[1732120088913,0.23307167,93493.0,93484.0,0.18284416]
[1732120088914,0.23307167,93495.0,93484.0,0.18284416]
[1732120089128,0.23307167,93507.0,93485.0,0.01828442]
[1732120089356,0.31463991,93526.0,93486.0,0.10711512]
[1732120089357,0.23307167,93517.0,93486.0,0.10711512]
[1732120089609,0.23307167,93534.0,93493.0,0.11711512]
[1732120089840,0.23307167,93548.0,93507.0,0.01]
[1732120090167,0.23307167,93564.0,93509.0,0.10711512]
[1732120090313,0.01,93539.0,93510.0,0.01564726]
[1732120090540,0.14937155,93555.0,93511.0,0.023]
[1732120090541,0.01,93535.0,93511.0,0.023]
[1732120090788,0.13937155,93545.0,93512.0,0.00735761]
[1732120090789,0.01,93523.0,93512.0,0.00735761]
[1732120090998,0.01,93523.0,93511.0,0.00209239]
[1732120090999,0.10711512,93522.0,93511.0,0.00209239]
[1732120091251,0.23204122,93536.0,93504.0,0.0008575]
[1732120091252,0.09281145,93528.0,93513.0,0.00208625]
[1732120091493,0.09281145,93538.0,93506.0,0.123]
[1732120091724,0.13922473,93541.0,93504.0,0.0008575]
[1732120091725,0.09281145,93541.0,93508.0,0.123]
[1732120091958,0.01,93536.0,93510.0,0.123]
[1732120092167,0.01,93536.0,93512.0,0.023]
[1732120092409,0.01,93536.0,93512.0,0.13011512]
[1732120092631,0.01,93536.0,93514.0,0.023]
[1732120092849,0.13922473,93544.0,93516.0,0.023]
[1732120092850,0.09281145,93544.0,93516.0,0.023]
[1732120093070,0.27844946,93562.0,93515.0,0.10818429]
[1732120093071,0.09281145,93554.0,93518.0,0.123]
[1732120093313,0.01,93565.0,93518.0,0.123]
[1732120093314,0.10281145,93567.0,93522.0,0.023]
[1732120093529,0.0927092,93572.0,93524.0,0.123]
[1732120093745,0.23177301,93581.0,93528.0,0.1719]
[1732120093746,0.0927092,93581.0,93528.0,0.1719]
[1732120093988,0.01,93572.0,93530.0,0.123]
[1732120094202,0.01,93561.0,93530.0,0.123]
[1732120094412,0.0927092,93574.0,93532.0,0.023]
[1732120094643,0.10711512,93572.0,93535.0,0.023]
[1732120094869,0.1854184,93581.0,93533.0,0.10818402]
[1732120094870,0.0927092,93579.0,93537.0,0.123]
[1732120095074,0.01,93575.0,93539.0,0.023]
[1732120095336,0.01,93575.0,93541.0,0.123]
[1732120095542,0.10711512,93574.0,93542.0,0.13011512]
[1732120095763,0.10711512,93574.0,93542.0,0.13217786]
[1732120095764,0.01,93574.0,93542.0,0.13217786]
[1732120095967,0.01,93574.0,93543.0,0.1]
[1732120096179,0.10711512,93573.0,93544.0,0.02091779]
[1732120096387,0.10711512,93573.0,93543.0,0.1]
[1732120096602,0.0927092,93586.0,93545.0,0.1]
[1732120096603,0.01,93574.0,93545.0,0.1]
[1732120096839,0.01,93574.0,93534.0,0.0157084]
[1732120096840,0.01,93574.0,93547.0,0.1]
[1732120097079,0.10711512,93585.0,93549.0,0.1]
[1732120097305,0.10711512,93584.0,93550.0,0.12800632]
[1732120097576,0.10711512,93584.0,93549.0,0.1]
[1732120097577,0.01,93574.0,93549.0,0.1]
[1732120097812,0.01,93574.0,93550.0,0.01]
[1732120098028,0.01,93574.0,93549.0,0.19884684]
[1732120099108,0.01,93574.0,93550.0,0.10711512]
[1732120099550,0.10811512,93573.0,93530.0,0.000857]
[1732120099768,0.10811512,93573.0,93532.0,0.023]
[1732120099999,0.001,93572.0,93534.0,0.023]
[1732120100206,0.10711512,93571.0,93536.0,0.1]
[1732120100432,0.10711512,93571.0,93538.0,0.1]
[1732120100644,0.10711512,93571.0,93540.0,0.1]
[1732120100877,0.01,93572.0,93542.0,0.1]
[1732120101092,0.03092913,93589.0,93544.0,0.1]
[1732120101093,0.01933159,93582.0,93544.0,0.1]
[1732120101353,0.01,93587.0,93546.0,0.1]
[1732120101590,0.01933159,93591.0,93547.0,0.12782663]
[1732120101853,0.01933159,93591.0,93548.0,0.2232]
[1732120101854,0.01,93589.0,93548.0,0.2232]
[1732120102094,0.10711512,93588.0,93549.0,0.10711512]
[1732120102547,0.10711512,93588.0,93501.0,0.01]
[1732120102548,0.01,93567.0,93501.0,0.01]
[1732120102779,0.01,93567.0,93536.0,0.10711512]
[1732120103023,0.26467493,93587.0,93536.0,0.10711512]
[1732120103024,0.01,93577.0,93537.0,0.01090411]
[1732120103244,0.17203746,93587.0,93538.0,0.10711512]
[1732120103245,0.01,93567.0,93538.0,0.10711512]
[1732120103696,0.01,93592.0,93538.0,0.10711512]
[1732120103697,0.01,93582.0,93539.0,0.0010688]
[1732120103925,0.2643552,93602.0,93539.0,0.0010688]
[1732120103926,0.01,93578.0,93540.0,0.01]
[1732120104165,0.01,93578.0,93542.0,0.1]
[1732120104394,0.01,93578.0,93544.0,0.1]
[1732120104625,0.01,93578.0,93546.0,0.1]
[1732120104866,0.01,93578.0,93548.0,0.1]
[1732120105091,0.01,93582.0,93550.0,0.1]
[1732120105327,0.01,93591.0,93552.0,0.1]
[1732120105631,0.01,93586.0,93553.0,0.10711512]
[1732120105731,0.01,93566.0,93527.0,0.0826]
[1732120105938,0.01,93566.0,93525.0,0.0455]
[1732120105939,0.01,93557.0,93525.0,0.0455]
[1732120106186,0.5381,93565.0,93525.0,0.0455]
[1732120106187,0.01,93554.0,93525.0,0.0455]
[1732120106401,0.11711512,93554.0,93525.0,0.0455]
[1732120106604,0.11711512,93554.0,93548.0,0.05]
[1732120106874,0.10711512,93553.0,93548.0,0.05]
[1732120108023,0.10711512,93553.0,93508.0,0.1]
[1732120108264,0.10711512,93553.0,93507.0,0.0826]
[1732120108997,0.01,93544.0,93507.0,0.0826]
[1732120109245,0.10711512,93543.0,93507.0,0.0826]
[1732120109745,0.01,93533.0,93504.0,0.0465575]
[1732120109960,0.01,93531.0,93504.0,0.0465575]
[1732120110175,0.11711512,93531.0,93504.0,0.0465575]
[1732120111323,0.11711512,93531.0,93504.0,0.0008575]
[1732120112033,0.01,93521.0,93504.0,0.0008575]
[1732120112273,0.10711512,93520.0,93504.0,0.0008575]
[1732120112956,0.01,93521.0,93504.0,0.0008575]
[1732120113199,0.10711512,93520.0,93504.0,0.0008575]
[1732120114188,0.01,93521.0,93504.0,0.0008575]
[1732120115101,0.5381,93539.0,93504.0,0.0008575]
[1732120115102,0.5381,93539.0,93505.0,0.10711512]
[1732120115338,0.5381,93539.0,93504.0,0.0008575]
[1732120115339,0.01,93534.0,93506.0,0.11079726]
[1732120115560,0.10711512,93533.0,93506.0,0.1]
[1732120115782,0.11611512,93533.0,93506.0,0.1]
[1732120116027,0.01,93527.0,93507.0,0.01008575]
[1732120116235,0.01,93527.0,93504.0,0.0008575]
[1732120117460,0.10711512,93526.0,93504.0,0.0008575]
[1732120117672,0.10711512,93526.0,93487.0,0.0474]
[1732120117673,0.01,93514.0,93487.0,0.0474]
[1732120117912,0.10711512,93513.0,93488.0,0.03737916]
[1732120118383,0.01,93494.0,93465.0,0.0469]
[1732120118600,0.10711512,93510.0,93465.0,0.0469]
[1732120118601,0.11711512,93493.0,93465.0,0.0469]
[1732120118811,0.01,93492.0,93465.0,0.0469]
[1732120119015,0.10711512,93491.0,93484.0,0.20112858]
[1732120119240,0.10711512,93491.0,93484.0,0.18284416]
[1732120119241,0.01,93485.0,93484.0,0.18284416]
[1732120119459,0.11711512,93485.0,93484.0,0.18284416]
[1732120119908,0.11711512,93485.0,93447.0,0.0824]
[1732120120131,0.10711512,93484.0,93447.0,0.0824]
[1732120120831,0.01,93481.0,93447.0,0.0824]
[1732120121138,0.01,93478.0,93438.0,0.0469]
[1732120121345,0.04317348,93485.0,93438.0,0.0469]
[1732120121346,0.01,93476.0,93438.0,0.0469]
[1732120121585,0.0792,93484.0,93438.0,0.0469]
[1732120121586,0.009,93474.0,93438.0,0.0469]
[1732120121848,0.11611512,93474.0,93438.0,0.0469]
[1732120122044,0.009,93474.0,93438.0,0.0469]
[1732120122487,0.15932327,93474.0,93445.0,0.0010699]
[1732120122745,0.15932327,93474.0,93438.0,0.0469]
[1732120122746,0.009,93474.0,93447.0,0.04382789]
[1732120122982,0.11611512,93474.0,93473.0,0.0010557]
[1732120123627,0.1592886,93474.0,93473.0,0.0010557]
[1732120124515,0.009,93466.0,93438.0,0.04565749]
[1732120124761,0.10818511,93465.0,93439.0,0.0147015]
[1732120125218,0.10818511,93465.0,93439.0,0.1047015]
[1732120125219,0.10711512,93465.0,93439.0,0.1047015]
[1732120126098,0.10711512,93465.0,93439.0,0.0047015]
[1732120126347,0.10711512,93465.0,93440.0,0.00286365]
[1732120126558,0.009,93463.0,93436.0,0.0008575]
[1732120126777,0.04317348,93474.0,93437.0,0.1]
[1732120126778,0.009,93462.0,93437.0,0.1]
[1732120127017,0.009,93462.0,93438.0,0.03375041]
[1732120127257,0.009,93471.0,93439.0,0.1]
[1732120127504,0.5381,93485.0,93441.0,0.1]
[1732120127791,0.09259083,93496.0,93441.0,0.1]
[1732120127792,0.009,93471.0,93442.0,0.10711512]
[1732120128031,0.009,93482.0,93443.0,0.1]
[1732120128255,0.0792,93497.0,93444.0,0.21682854]
[1732120128256,0.008,93486.0,93444.0,0.21682854]
[1732120128481,0.008,93486.0,93445.0,0.13927516]
[1732120128482,0.11511512,93486.0,93445.0,0.13927516]
[1732120128722,0.11511512,93486.0,93447.0,0.1]
[1732120128953,0.0872,93497.0,93449.0,0.1]
[1732120129167,0.008,93493.0,93451.0,0.1]
[1732120129383,0.10711512,93496.0,93447.0,0.01]
[1732120129384,0.10711512,93496.0,93453.0,0.1]
[1732120129638,0.10711512,93496.0,93455.0,0.1]
[1732120129843,0.10711512,93496.0,93456.0,0.00106984]
[1732120129844,0.008,93490.0,93456.0,0.00106984]
[1732120130060,0.11511512,93490.0,93457.0,0.10711512]
[1732120130289,0.04277022,93497.0,93458.0,0.13153001]
[1732120130505,0.04277022,93497.0,93486.0,0.1]
[1732120130766,0.008,93526.0,93487.0,0.04746938]
[1732120130767,0.09259083,93526.0,93487.0,0.04746938]
[1732120131008,0.09259083,93537.0,93488.0,0.10711512]
[1732120131223,0.10611512,93542.0,93507.0,0.1]
[1732120131452,0.10611512,93542.0,93509.0,0.1]
[1732120131698,0.0017114,93543.0,93510.0,0.10711512]
[1732120131929,0.0017114,93543.0,93511.0,0.12071151]
[1732120132170,0.0017114,93543.0,93511.0,0.1]
[1732120132171,0.10711512,93542.0,93511.0,0.1]
[1732120132423,0.11511512,93542.0,93511.0,0.1]
[1732120132871,0.11511512,93542.0,93496.0,0.002]
[1732120133098,0.11511512,93542.0,93498.0,0.1]
[1732120133335,0.11511512,93542.0,93500.0,0.1]
[1732120133589,0.0017114,93543.0,93502.0,0.1]
[1732120133830,0.0017114,93543.0,93504.0,0.1]
[1732120134094,0.0017114,93543.0,93506.0,0.1]
[1732120134321,0.0017114,93543.0,93508.0,0.1]
[1732120134552,0.0017114,93543.0,93510.0,0.1]
[1732120134790,0.0017114,93543.0,93526.0,0.1]
[1732120135018,0.0017114,93543.0,93527.0,0.10711512]
[1732120135251,0.0017114,93543.0,93511.0,0.124]
[1732120135252,0.008,93536.0,93512.0,0.1]
[1732120135500,0.008,93532.0,93511.0,0.0483]
[1732120136247,0.10711512,93518.0,93494.0,0.04292766]
[1732120136483,0.008,93520.0,93474.0,0.002]
[1732120136751,0.008,93520.0,93475.0,0.10711512]
[1732120136752,0.10711512,93519.0,93475.0,0.10711512]
[1732120136989,0.0117114,93543.0,93498.0,0.137]
[1732120136990,0.04228522,93532.0,93498.0,0.137]
[1732120137228,0.0017114,93543.0,93498.0,0.137]
[1732120137229,0.0017114,93543.0,93525.0,0.002]
[1732120137936,0.0017114,93543.0,93527.0,0.1]
[1732120138171,0.0017114,93543.0,93542.0,0.1]
[1732120138398,0.0017114,93543.0,93542.0,0.09409591]
[1732120138874,0.0017114,93543.0,93542.0,0.01]
[1732120139105,0.0017114,93543.0,93528.0,0.10711512]
[1732120139106,0.0017114,93543.0,93525.0,0.002]
[1732120139357,0.10711512,93542.0,93511.0,0.0473]
[1732120139581,0.10711512,93542.0,93499.0,0.02461151]
[1732120139832,0.10711512,93542.0,93469.0,0.002]
[1732120139833,0.10711512,93526.0,93488.0,0.002]
[1732120140067,0.10711512,93526.0,93489.0,0.10711512]
[1732120140302,0.0826,93541.0,93475.0,0.0487]
[1732120140303,0.10711512,93509.0,93475.0,0.0487]
[1732120140538,0.10711512,93509.0,93477.0,0.10818479]
[1732120140774,0.04381893,93526.0,93477.0,0.10818479]
[1732120140775,0.04381893,93526.0,93478.0,0.00106952]
[1732120141013,0.04381893,93526.0,93479.0,0.12300358]
[1732120141014,0.10711512,93525.0,93479.0,0.12300358]
[1732120141248,0.008,93524.0,93479.0,0.12300358]
[1732120141457,0.5381,93540.0,93479.0,0.01588846]
[1732120141458,0.008,93519.0,93479.0,0.01588846]
[1732120141697,0.008,93519.0,93480.0,0.10818475]
[1732120141698,0.10711512,93518.0,93480.0,0.10818475]
[1732120141916,0.008,93524.0,93480.0,0.10818475]
[1732120142129,0.10711512,93523.0,93481.0,0.01588847]
[1732120142359,0.01,93549.0,93481.0,0.01588847]
[1732120142360,0.008,93536.0,93482.0,0.10818456]
[1732120142620,0.23166131,93559.0,93482.0,0.10818456]
[1732120142621,0.10711512,93535.0,93483.0,0.20282242]
[1732120142841,0.10711512,93535.0,93484.0,0.1]
[1732120143131,0.10711512,93535.0,93483.0,0.20282242]
[1732120143132,0.008,93552.0,93494.0,0.002]
[1732120143351,0.0047114,93549.0,93501.0,0.0052886]
[1732120143557,0.0047114,93552.0,93504.0,0.0052886]
[1732120143777,0.10711512,93551.0,93506.0,0.1]
[1732120144023,0.0047114,93552.0,93507.0,0.04716132]
[1732120144256,0.0047114,93551.0,93508.0,0.10711512]
[1732120144474,0.0047114,93551.0,93509.0,0.04124168]
[1732120144730,0.0047114,93551.0,93510.0,0.10711512]
[1732120144994,0.0047114,93551.0,93511.0,0.1]
[1732120145220,0.10711512,93568.0,93515.0,0.10711512]
[1732120145437,0.10711512,93568.0,93512.0,0.045]
[1732120145438,0.10711512,93568.0,93521.0,0.1]
[1732120145679,0.10711512,93568.0,93516.0,0.10106894]
[1732120145680,0.0017114,93581.0,93525.0,0.10711512]
[1732120145906,0.10711512,93578.0,93528.0,0.10711512]
[1732120146119,0.10882652,93578.0,93530.0,0.0082886]
[1732120146333,0.10711512,93578.0,93531.0,0.0010688]
[1732120146563,0.10711512,93578.0,93529.0,0.13555923]
[1732120146564,0.10711512,93578.0,93533.0,0.1]
[1732120146819,0.10711512,93578.0,93534.0,0.10711512]
[1732120147052,0.10711512,93578.0,93535.0,0.1]
[1732120147303,0.10711512,93578.0,93532.0,0.03899178]
[1732120147304,0.10711512,93578.0,93537.0,0.1]
[1732120147517,0.10711512,93578.0,93539.0,0.1]
[1732120147726,0.10711512,93578.0,93551.0,0.1]
[1732120148384,0.0017114,93580.0,93552.0,0.10711512]
[1732120148632,0.04280099,93581.0,93553.0,0.1]
[1732120148868,0.04280099,93581.0,93553.0,0.10106874]
[1732120149107,0.10711512,93578.0,93553.0,0.1]
[1732120149320,0.10711512,93578.0,93554.0,0.011]
[1732120149576,0.10711512,93578.0,93555.0,0.00106889]
[1732120150068,0.10711512,93578.0,93533.0,0.0129551]
[1732120150069,0.0017114,93568.0,93533.0,0.0129551]
[1732120150294,0.0017114,93560.0,93506.0,0.0082886]
[1732120150512,0.0017114,93560.0,93526.0,0.15211512]
[1732120150513,0.10711512,93559.0,93526.0,0.15211512]
[1732120150732,0.10711512,93559.0,93527.0,0.13001663]
[1732120150950,0.0017114,93551.0,93527.0,0.02290151]
[1732120151161,0.077,93558.0,93505.0,0.0493]
[1732120151162,0.0017114,93547.0,93505.0,0.0493]
[1732120151404,0.01,93557.0,93506.0,0.01302]
[1732120151405,0.0017114,93542.0,93506.0,0.01302]
[1732120151666,0.0017114,93534.0,93506.0,0.01302]
[1732120151951,0.0017114,93530.0,93488.0,0.0809]
[1732120152156,0.10711512,93533.0,93488.0,0.0809]
[1732120152157,0.0017114,93533.0,93489.0,0.12013512]
[1732120152379,0.0017114,93530.0,93489.0,0.12013512]
[1732120152587,0.0017114,93530.0,93490.0,0.02503351]
[1732120152803,0.0017114,93530.0,93491.0,0.10711512]
[1732120153289,0.10711512,93529.0,93492.0,0.1]
[1732120153527,0.10711512,93529.0,93494.0,0.1]
[1732120153749,0.10711512,93529.0,93496.0,0.1]
[1732120153962,0.10711512,93529.0,93498.0,0.1]
[1732120154631,0.10711512,93529.0,93498.0,0.0995]
[1732120154870,0.10711512,93529.0,93499.0,0.02066151]
[1732120155125,0.0017114,93522.0,93477.0,0.0008556]
[1732120155379,0.0017114,93518.0,93477.0,0.0008556]
[1732120155593,0.10711512,93517.0,93478.0,0.12270068]
[1732120155877,0.0017114,93514.0,93478.0,0.12270068]
[1732120156112,0.10711512,93513.0,93478.0,0.12270068]
[1732120156335,0.0017114,93514.0,93479.0,0.02785563]
[1732120156575,0.0017114,93514.0,93480.0,0.10711512]
[1732120157052,0.0017114,93514.0,93481.0,0.1]
[1732120157300,0.10711512,93513.0,93483.0,0.1]
[1732120157515,0.10711512,93513.0,93484.0,0.02514119]
[1732120157516,0.0017114,93512.0,93484.0,0.02514119]
[1732120157727,0.10711512,93511.0,93483.0,0.1]
[1732120157946,0.10711512,93511.0,93478.0,0.01558556]
[1732120157947,0.0017114,93502.0,93478.0,0.01558556]
[1732120158159,0.0017114,93502.0,93477.0,0.0008556]
[1732120158160,0.10711512,93501.0,93477.0,0.0008556]
[1732120158593,0.0017114,93500.0,93477.0,0.0008556]
[1732120158832,0.10882652,93500.0,93477.0,0.0008556]
[1732120159049,0.10782652,93500.0,93477.0,0.0008556]
[1732120160466,0.15224146,93500.0,93477.0,0.0008556]
[1732120160928,0.0017114,93498.0,93477.0,0.0008556]
[1732120161137,0.0017114,93498.0,93478.0,0.1]
[1732120161375,0.0017114,93498.0,93479.0,0.01008556]
[1732120161588,0.0017114,93498.0,93480.0,0.00106961]
[1732120161840,0.04441494,93500.0,93480.0,0.00106961]
[1732120161841,0.04612634,93500.0,93480.0,0.00106961]
[1732120162066,0.04612634,93500.0,93479.0,0.01008556]
[1732120162297,0.0017114,93500.0,93480.0,0.10906255]
[1732120162515,0.0017114,93500.0,93481.0,0.00106961]
[1732120162731,0.0017114,93500.0,93480.0,0.21617767]
[1732120162732,0.0007114,93500.0,93480.0,0.21617767]
[1732120162949,0.0007114,93500.0,93481.0,0.11013211]
[1732120163193,0.0007114,93514.0,93482.0,0.1]
[1732120163399,0.0007114,93514.0,93484.0,0.1]
[1732120163664,0.0007114,93514.0,93485.0,0.10711512]
[1732120163884,0.05114855,93521.0,93485.0,0.10711512]
[1732120164132,0.001712,93517.0,93486.0,0.1]
[1732120164337,0.001712,93517.0,93487.0,0.1605454]
[1732120164582,0.00164978,93517.0,93488.0,0.1]
[1732120164834,0.00164978,93517.0,93490.0,0.1]
[1732120165075,0.00164978,93517.0,93492.0,0.1]
[1732120165298,0.09255065,93551.0,93482.0,0.10906255]
[1732120165299,0.09255065,93554.0,93509.0,0.10711512]
[1732120165521,0.09255065,93561.0,93519.0,0.10711512]
[1732120165754,0.04249762,93554.0,93520.0,0.20711512]
[1732120165965,0.04249762,93554.0,93506.0,0.01]
[1732120165966,0.10711512,93560.0,93492.0,0.0469]
[1732120166209,0.01,93559.0,93495.0,0.01]
[1732120166463,0.01,93559.0,93492.0,0.0469]
[1732120166464,0.10711512,93554.0,93496.0,0.10711512]
[1732120166682,0.10711512,93554.0,93497.0,0.10711512]
[1732120166898,0.10711512,93554.0,93498.0,0.00106918]
[1732120167142,0.10711512,93554.0,93500.0,0.1]
[1732120167374,0.10711512,93554.0,93501.0,0.12782663]
[1732120167606,0.10711512,93554.0,93502.0,0.1]
[1732120167815,0.0775,93556.0,93511.0,0.1]
[1732120168041,0.04235021,93559.0,93514.0,0.10711512]
[1732120168264,0.04235021,93559.0,93515.0,0.20101151]
[1732120168506,0.0784,93569.0,93529.0,0.1]
[1732120168762,0.10711512,93568.0,93530.0,0.10818406]
[1732120168979,0.10711512,93561.0,93531.0,0.02081841]
[1732120169231,0.10711512,93561.0,93518.0,0.1]
[1732120169448,0.10711512,93561.0,93519.0,0.13260663]
[1732120169663,0.0803,93531.0,93480.0,0.0486]
[1732120169885,0.10711512,93530.0,93481.0,0.21617767]
[1732120170308,0.0803,93531.0,93481.0,0.21617767]
[1732120170309,0.10711512,93529.0,93481.0,0.21617767]
[1732120170517,0.10711512,93529.0,93482.0,0.10906255]
[1732120170762,0.10711512,93529.0,93483.0,0.1081847]
[1732120171214,0.1507977,93529.0,93483.0,0.1081847]
[1732120171502,0.1507977,93529.0,93482.0,0.10906255]
[1732120171757,0.1507977,93529.0,93483.0,0.10906255]
[1732120171978,0.01,93528.0,93483.0,0.10906255]
[1732120172192,0.10711512,93527.0,93483.0,0.10906255]
[1732120172617,0.21403612,93527.0,93483.0,0.10906255]
[1732120172838,0.10711512,93521.0,93483.0,0.10906255]
[1732120173049,0.10711512,93521.0,93484.0,0.07799429]
[1732120173930,0.10711512,93521.0,93484.0,0.07906391]
[1732120174143,0.10711512,93521.0,93484.0,0.07799429]
[1732120175085,0.10711512,93521.0,93486.0,0.1]
[1732120175353,0.10711512,93521.0,93488.0,0.1]
[1732120175354,0.10611512,93521.0,93488.0,0.1]
[1732120175597,0.10611512,93521.0,93490.0,0.1]
[1732120175822,0.04368258,93529.0,93492.0,0.147]
[1732120176067,0.10711512,93528.0,93494.0,0.1]
[1732120176302,0.10711512,93528.0,93495.0,0.03541151]
[1732120176541,0.10711512,93528.0,93484.0,0.07799429]
[1732120176542,0.001712,93521.0,93484.0,0.17799429]
[1732120176783,0.001712,93521.0,93485.0,0.10711512]
[1732120176784,0.10711512,93520.0,93485.0,0.10711512]
[1732120177003,0.10711512,93520.0,93486.0,0.0394172]
[1732120177225,0.10711512,93520.0,93484.0,0.07799429]
[1732120177924,0.14964965,93520.0,93484.0,0.07799429]
[1732120178657,0.14964965,93520.0,93484.0,0.07906389]
[1732120178875,0.14964965,93520.0,93484.0,0.07799429]
[1732120179396,0.106932,93518.0,93484.0,0.07799429]
[1732120179610,0.10711512,93517.0,93485.0,0.01879128]
[1732120179816,0.21404712,93517.0,93485.0,0.01879128]
[1732120180029,0.52053678,93517.0,93485.0,0.01879128]
[1732120180292,0.10711512,93516.0,93486.0,0.02058481]
[1732120180509,0.10711512,93502.0,93457.0,0.0461]
[1732120180718,0.10711512,93502.0,93479.0,0.10906255]
[1732120180979,0.32085,93501.0,93479.0,0.10906255]
[1732120181209,0.10711512,93500.0,93479.0,0.10906255]
[1732120181701,0.5381,93510.0,93479.0,0.10906255]
[1732120181702,0.32085,93499.0,93479.0,0.10906255]
[1732120181917,0.32085,93499.0,93480.0,0.10906255]
[1732120182374,0.10711512,93498.0,93480.0,0.10906255]
[1732120182852,0.32085,93499.0,93477.0,4.85460495]
[1732120182853,0.1,93484.0,93477.0,4.85460495]
[1732120183108,0.10711512,93483.0,93477.0,4.81034353]
[1732120183330,0.99055,93497.0,93477.0,4.81034353]
[1732120183331,0.40325,93497.0,93478.0,0.10906255]
[1732120183549,0.10711512,93496.0,93478.0,0.10906255]
[1732120184481,0.32085,93497.0,93479.0,0.00106975]
[1732120184714,0.32085,93497.0,93479.0,0.10906255]
[1732120184960,0.10711512,93496.0,93479.0,0.10906255]
[1732120185173,0.32085,93497.0,93477.0,4.81034353]
[1732120185174,0.10711512,93492.0,93477.0,4.81034353]
[1732120187018,0.01,93486.0,93477.0,4.81034353]
[1732120187268,0.10711512,93485.0,93477.0,4.81034353]
[1732120187500,0.42796512,93485.0,93477.0,4.81034353]
[1732120188181,0.01,93484.0,93477.0,4.81034353]
[1732120188401,0.42796512,93485.0,93477.0,4.81034353]
[1732120188402,0.10711512,93483.0,93477.0,4.81034353]
[1732120188637,0.42796512,93483.0,93477.0,4.81034353]
[1732120189285,0.42796512,93483.0,93477.0,4.81119933]
[1732120190198,0.42696512,93483.0,93477.0,4.81119933]
[1732120190640,0.42696512,93483.0,93477.0,4.56120822]
[1732120190641,0.46942495,93483.0,93477.0,4.56120822]
[1732120190883,0.57639595,93483.0,93477.0,4.56120822]
[1732120191092,0.46942495,93483.0,93477.0,4.56120822]
[1732120192036,0.46942495,93483.0,93477.0,3.984115]
[1732120193181,0.46942495,93483.0,93477.0,3.47900841]
[1732120194377,0.10711512,93478.0,93477.0,3.45677941]
[1732120194606,0.10711512,93478.0,93477.0,3.34233941]
[1732120194849,0.42796512,93478.0,93477.0,3.34233941]
[1732120195088,0.42796512,93478.0,93477.0,3.3316346]
[1732120195323,0.53494212,93478.0,93477.0,3.3316346]
[1732120196272,0.96606512,93478.0,93477.0,3.3316346]
[1732120196543,0.42796512,93478.0,93477.0,3.3316346]
[1732120197013,0.42696512,93478.0,93477.0,3.3316346]
[1732120197235,0.32085,93478.0,93477.0,3.3316346]
[1732120197461,0.42796512,93478.0,93477.0,3.3316346]